{"text_format":"3","workbook":"xlsx","n_sheets":8,"sheets":["Instructions","Contacts réguliers","Contacts occasionnels","Prospects potentiels","Plan de mise en réseau T1","Plan de mise en réseau T2","Plan de mise en réseau T3","Plan de mise en réseau T4"],"not_rendered":{"defined_names":7},"read":"whole","date_system":"1900"}

{"sheet":"Instructions","index":0,"n_rows":17,"n_cols":5,"rows_kept":17,"merged":[[0,0,0,2],[1,1,1,6],[2,1,2,6],[3,1,3,6],[4,1,4,6],[5,1,5,6],[6,1,6,6],[7,1,7,6],[8,1,8,6],[9,1,9,6],[10,1,10,6],[11,1,11,6]]}
["Suivi de prise de contact",null,null,"Instructions"]
[null,"1. Choisissez la catégorie dans laquelle se trouve votre contact :"]
[null,"• Contacts réguliers : personnes avec lesquelles vous souhaitez rester en contact très régulièrement"]
[null,"• Contacts occasionnels : personnes avec lesquelles vous souhaitez vous connecter plusieurs fois par an"]
[null,"• Prospects potentiels : personnes/entreprises que vous souhaitez conserver dans un fichier afin de les contacter lorsque le moment se présente"]
[null,"2. Ouvrez l’onglet de feuille de calcul correspondant."]
[null,"3. Entrez leurs informations (pour créer une ligne dans une cellule, appuyez sur Alt+Entrée dans Windows ou Option+Retour sur un Mac)."]
[null,"Consultez cette page pour obtenir de nouvelles instructions en ligne pour les applications Excel mobiles."]
[null,"4. Dans la colonne Date de suivi, supprimez l’exemple de date/formule, entrez le moment où vous souhaitez les contacter, \net appuyez sur Entrée."]
[null,"5. La colonneDate de suivi s’affiche en rouge lorsque la date est presque à échéance, jaune lorsqu’elle approche et \nverte lorsque vous avez beaucoup de temps."]
[null,"6. À mesure que la date de suivi se rapproche, la couleur change en conséquence."]
[null,"7. Une fois que vous avez contacté votre contact, tapez OUI dans la colonneTerminé ? Cela grisera la date. "]
[null,"8. Si vous souhaitez les contacter à nouveau, remplacez OUI par NON, puis inscrivez une nouvelle Date de suivi."]
[null,null,"Rouge","Jaune","Verte"]
[null,"Contacts réguliers","Dans les 1 à 3 jours","Dans les 4 à 7 jours","Dans plus de 8 à 14 jours"]
[null,"Contacts occasionnels","Dans les 1 à 7 jours","Dans les 8 à 45 jours","Dans plus de 46 à 90 jours"]
[null,"Prospects potentiels","Dans les 1 à 14 jours","Dans les 15 à 60 jours","Dans plus de 60 à 120 jours"]

{"sheet":"Contacts réguliers","index":1,"n_rows":7,"n_cols":8,"rows_kept":7,"merged":[[0,0,0,2]]}
["Suivi de prise de contact",null,null,"Contacts réguliers"]
[]
["Nom","Entreprise","Informations de contact","Où nous nous sommes rencontrés","Remarques","Date de suivi","Terminé","Notes de la discussion"]
["Garth Fort","Adventure Works","Responsable de projet\ngarth@adventure-works.com\n(234) 555-0134\nadventure-works.com\nlinkedin.com/in/garth-fort","Présentation commerciale 2010","Renseignez-vous sur Sandy et sur comment se passe le remodelage. N’aime pas la foule et la nourriture épicée.",{"$f":"TODAY()+8","v":"2021-07-20"},"NON"]
["Nom","Nom de l’entreprise","Titre du poste\nCourriel\nNuméro de téléphone\nSite web\nLiens de profil social\n","Emplacement","Ajoutez les notes dont vous voulez vous souvenir à propos de cette personne ; l’endroit où vous vous êtes rencontré, ce dont vous avez parlé, ce que vous voulez faire apparaître la prochaine fois que vous parlez, etc.",{"$f":"TODAY()-3","v":"2021-07-09"},"OUI"]
["Nom","Nom de l’entreprise","Titre du poste\nCourriel\nNuméro de téléphone\nSite web\nLiens de profil social\n","Emplacement","Ajoutez les notes dont vous voulez vous souvenir à propos de cette personne ; l’endroit où vous vous êtes rencontré, ce dont vous avez parlé, ce que vous voulez faire apparaître la prochaine fois que vous parlez, etc.",{"$f":"TODAY()+-3","v":"2021-07-09"},"NON"]
["Nom","Nom de l’entreprise","Titre du poste\nCourriel\nNuméro de téléphone\nSite web\nLiens de profil social\n","Emplacement","Ajoutez les notes dont vous voulez vous souvenir à propos de cette personne ; l’endroit où vous vous êtes rencontré, ce dont vous avez parlé, ce que vous voulez faire apparaître la prochaine fois que vous parlez, etc.",{"$f":"TODAY()+6","v":"2021-07-18"},"NON"]

{"sheet":"Contacts occasionnels","index":2,"n_rows":7,"n_cols":8,"rows_kept":7,"merged":[[0,0,0,2]]}
["Suivi de prise de contact",null,null,"Contacts occasionnels"]
[]
["Nom","Entreprise","Informations de contact","Où nous nous sommes rencontrés","Remarques","Date de suivi","Terminé","Notes de la discussion"]
["Garth Fort","Adventure Works","Gestionnaire de ressources\ngarth@adventure-works.com\n(434) 555-0123\nwww.adventure-works.com\nlinkedin.com/in/garth-fort","Vacances au Vermont en 2016","Pratique pour les contacts d’embauche et les questions marketing",{"$f":"TODAY()+90","v":"2021-10-10"},"NON"]
["Nom","Nom de l’entreprise","Titre du poste\nCourriel\nNuméro de téléphone\nSite web\nLiens de profil social\n","Emplacement","Ajoutez les notes dont vous voulez vous souvenir à propos de cette personne ; l’endroit où vous vous êtes rencontré, ce dont vous avez parlé, ce que vous voulez faire apparaître la prochaine fois que vous parlez, etc.",{"$f":"TODAY()-3","v":"2021-07-09"},"OUI"]
["Nom","Nom de l’entreprise","Titre du poste\nCourriel\nNuméro de téléphone\nSite web\nLiens de profil social\n","Emplacement","Ajoutez les notes dont vous voulez vous souvenir à propos de cette personne ; l’endroit où vous vous êtes rencontré, ce dont vous avez parlé, ce que vous voulez faire apparaître la prochaine fois que vous parlez, etc.",{"$f":"TODAY()+-3","v":"2021-07-09"},"NON"]
["Nom","Nom de l’entreprise","Titre du poste\nCourriel\nNuméro de téléphone\nSite web\nLiens de profil social\n","Emplacement","Ajoutez les notes dont vous voulez vous souvenir à propos de cette personne ; l’endroit où vous vous êtes rencontré, ce dont vous avez parlé, ce que vous voulez faire apparaître la prochaine fois que vous parlez, etc.",{"$f":"TODAY()+40","v":"2021-08-21"},"NON"]

{"sheet":"Prospects potentiels","index":3,"n_rows":7,"n_cols":8,"rows_kept":7,"merged":[[0,0,0,2]]}
["Suivi de prise de contact",null,null,"Prospects potentiels"]
[]
["Nom","Entreprise","Informations de contact","Où nous nous sommes rencontrés","Remarques","Date de suivi","Terminé","Notes de la discussion"]
["Garth Fort","Pigiste","Concepteur\nsomeone@example.com\n425-555-0123\nexample.com\nlinkedin.com/in/garth-fort","Diplôme de son fils 2016","Diplôme récent - très qualifié. Peut être utile pour les clients futurs.",{"$f":"TODAY()+89","v":"2021-10-09"},"NON"]
["Nom","Nom de l’entreprise","Titre du poste\nCourriel\nNuméro de téléphone\nSite web\nLiens de profil social\n","Emplacement","Ajoutez les notes dont vous voulez vous souvenir à propos de cette personne ; l’endroit où vous vous êtes rencontré, ce dont vous avez parlé, ce que vous voulez faire apparaître la prochaine fois que vous parlez, etc.",{"$f":"TODAY()-3","v":"2021-07-09"},"OUI"]
["Nom","Nom de l’entreprise","Titre du poste\nCourriel\nNuméro de téléphone\nSite web\nLiens de profil social\n","Emplacement","Ajoutez les notes dont vous voulez vous souvenir à propos de cette personne ; l’endroit où vous vous êtes rencontré, ce dont vous avez parlé, ce que vous voulez faire apparaître la prochaine fois que vous parlez, etc.",{"$f":"TODAY()+-3","v":"2021-07-09"},"NON"]
["Nom","Nom de l’entreprise","Titre du poste\nCourriel\nNuméro de téléphone\nSite web\nLiens de profil social\n","Emplacement","Ajoutez les notes dont vous voulez vous souvenir à propos de cette personne ; l’endroit où vous vous êtes rencontré, ce dont vous avez parlé, ce que vous voulez faire apparaître la prochaine fois que vous parlez, etc.",{"$f":"TODAY()+30","v":"2021-08-11"},"NON"]

{"sheet":"Plan de mise en réseau T1","index":4,"n_rows":20,"n_cols":6,"rows_kept":20,"merged":[[0,0,0,3],[2,0,2,3],[4,0,4,3],[14,5,17,5],[18,0,18,3]]}
["Plan d’expansion du réseau"]
["Instructions"]
["Écrivez la façon dont vous prévoyez d’étendre votre réseau ce trimestre (par exemple, passer plus d’appels téléphoniques, voyager plus, etc.). Ensuite, chaque fois que vous obtenez un nouveau contact, modifiez le numéro Contacts réels créés pour effectuer le suivi et voir à quel point vous vous rapprochez de votre objectif."]
[]
["Comment j’envisage d’étendre mon réseau ce trimestre"]
["1. Passer d’autres appels téléphoniques"]
["2. Voyager plus"]
[]
[]
[]
[]
[]
[]
["Objectif de contact trimestriel","Échéance","Contacts trimestriels réels effectués","Résultats"]
[20,{"$f":"TODAY()","v":"2021-07-12"},12,{"$f":"IF(tblGoals[[#This Row],[Objectif de contact trimestriel]]>0,tblGoals[[#This Row],[Contacts trimestriels réels effectués]]/tblGoals[[#This Row],[Objectif de contact trimestriel]],\"\")","v":{"v":0.6,"d":"60%"}},null,"0% - 25%\n26% - 50%\n51% - 75%\n76% - 100%\n\nModifications de couleurs en fonction du pourcentage atteint"]
[{"$nulls":3},{"$f":"IF(tblGoals[[#This Row],[Objectif de contact trimestriel]]>0,tblGoals[[#This Row],[Contacts trimestriels réels effectués]]/tblGoals[[#This Row],[Objectif de contact trimestriel]],\"\")","v":""}]
[{"$nulls":3},{"$f":"IF(tblGoals[[#This Row],[Objectif de contact trimestriel]]>0,tblGoals[[#This Row],[Contacts trimestriels réels effectués]]/tblGoals[[#This Row],[Objectif de contact trimestriel]],\"\")","v":""}]
[]
["Réflexion sur le résultat / Remarques pour l’amélioration"]
["Je me suis rapproché. Essayez plutôt d’appeler vers l’heure du dîner."]

{"sheet":"Plan de mise en réseau T2","index":5,"n_rows":20,"n_cols":6,"rows_kept":20,"merged":[[0,0,0,3],[2,0,2,3],[4,0,4,3],[14,5,17,5],[18,0,18,3]]}
["Plan d’expansion du réseau"]
["Instructions"]
["Écrivez la façon dont vous prévoyez d’étendre votre réseau ce trimestre (par exemple, passer plus d’appels téléphoniques, voyager plus, etc.). Ensuite, chaque fois que vous obtenez un nouveau contact, modifiez le numéro Contacts réels créés pour effectuer le suivi et voir à quel point vous vous rapprochez de votre objectif."]
[]
["Comment j’envisage d’étendre mon réseau ce trimestre"]
["1. Passer d’autres appels téléphoniques"]
["2. Voyager plus"]
[]
[]
[]
[]
[]
[]
["Objectif de contact trimestriel","Échéance","Contacts trimestriels réels effectués","Résultats"]
[20,{"$f":"TODAY()","v":"2021-07-12"},12,{"$f":"IF(tblGoals3[[#This Row],[Objectif de contact trimestriel]]>0,tblGoals3[[#This Row],[Contacts trimestriels réels effectués]]/tblGoals3[[#This Row],[Objectif de contact trimestriel]],\"\")","v":{"v":0.6,"d":"60%"}},null,"0% - 25%\n26% - 50%\n51% - 75%\n76% - 100%\n\nModifications de couleurs en fonction du pourcentage atteint"]
[{"$nulls":3},{"$f":"IF(tblGoals3[[#This Row],[Objectif de contact trimestriel]]>0,tblGoals3[[#This Row],[Contacts trimestriels réels effectués]]/tblGoals3[[#This Row],[Objectif de contact trimestriel]],\"\")","v":""}]
[{"$nulls":3},{"$f":"IF(tblGoals3[[#This Row],[Objectif de contact trimestriel]]>0,tblGoals3[[#This Row],[Contacts trimestriels réels effectués]]/tblGoals3[[#This Row],[Objectif de contact trimestriel]],\"\")","v":""}]
[]
["Réflexion sur le résultat / Remarques pour l’amélioration"]
["Je me suis rapproché. Essayez plutôt d’appeler vers l’heure du dîner."]

{"sheet":"Plan de mise en réseau T3","index":6,"n_rows":20,"n_cols":6,"rows_kept":20,"merged":[[0,0,0,3],[2,0,2,3],[4,0,4,3],[14,5,17,5],[18,0,18,3]]}
["Plan d’expansion du réseau"]
["Instructions"]
["Écrivez la façon dont vous prévoyez d’étendre votre réseau ce trimestre (par exemple, passer plus d’appels téléphoniques, voyager plus, etc.). Ensuite, chaque fois que vous obtenez un nouveau contact, modifiez le numéro Contacts réels créés pour effectuer le suivi et voir à quel point vous vous rapprochez de votre objectif."]
[]
["Comment j’envisage d’étendre mon réseau ce trimestre"]
["1. Passer d’autres appels téléphoniques"]
["2. Voyager plus"]
[]
[]
[]
[]
[]
[]
["Objectif de contact trimestriel","Échéance","Contacts trimestriels réels effectués","Résultats"]
[20,{"$f":"TODAY()","v":"2021-07-12"},12,{"$f":"IF(tblGoals34[[#This Row],[Objectif de contact trimestriel]]>0,tblGoals34[[#This Row],[Contacts trimestriels réels effectués]]/tblGoals34[[#This Row],[Objectif de contact trimestriel]],\"\")","v":{"v":0.6,"d":"60%"}},null,"0% - 25%\n26% - 50%\n51% - 75%\n76% - 100%\n\nModifications de couleurs en fonction du pourcentage atteint"]
[{"$nulls":3},{"$f":"IF(tblGoals34[[#This Row],[Objectif de contact trimestriel]]>0,tblGoals34[[#This Row],[Contacts trimestriels réels effectués]]/tblGoals34[[#This Row],[Objectif de contact trimestriel]],\"\")","v":""}]
[{"$nulls":3},{"$f":"IF(tblGoals34[[#This Row],[Objectif de contact trimestriel]]>0,tblGoals34[[#This Row],[Contacts trimestriels réels effectués]]/tblGoals34[[#This Row],[Objectif de contact trimestriel]],\"\")","v":""}]
[]
["Réflexion sur le résultat / Remarques pour l’amélioration"]
["Je me suis rapproché. Essayez plutôt d’appeler vers l’heure du dîner."]

{"sheet":"Plan de mise en réseau T4","index":7,"n_rows":20,"n_cols":6,"rows_kept":20,"merged":[[0,0,0,3],[2,0,2,3],[4,0,4,3],[14,5,17,5],[18,0,18,3]]}
["Plan d’expansion du réseau"]
["Instructions"]
["Écrivez la façon dont vous prévoyez d’étendre votre réseau ce trimestre (par exemple, passer plus d’appels téléphoniques, voyager plus, etc.). Ensuite, chaque fois que vous obtenez un nouveau contact, modifiez le numéro Contacts réels créés pour effectuer le suivi et voir à quel point vous vous rapprochez de votre objectif."]
[]
["Comment j’envisage d’étendre mon réseau ce trimestre"]
["1. Passer d’autres appels téléphoniques"]
["2. Voyager plus"]
[]
[]
[]
[]
[]
[]
["Objectif de contact trimestriel","Échéance","Contacts trimestriels réels effectués","Résultats"]
[20,{"$f":"TODAY()","v":"2021-07-12"},12,{"$f":"IF(tblGoals348[[#This Row],[Objectif de contact trimestriel]]>0,tblGoals348[[#This Row],[Contacts trimestriels réels effectués]]/tblGoals348[[#This Row],[Objectif de contact trimestriel]],\"\")","v":{"v":0.6,"d":"60%"}},null,"0% - 25%\n26% - 50%\n51% - 75%\n76% - 100%\n\nModifications de couleurs en fonction du pourcentage atteint"]
[{"$nulls":3},{"$f":"IF(tblGoals348[[#This Row],[Objectif de contact trimestriel]]>0,tblGoals348[[#This Row],[Contacts trimestriels réels effectués]]/tblGoals348[[#This Row],[Objectif de contact trimestriel]],\"\")","v":""}]
[{"$nulls":3},{"$f":"IF(tblGoals348[[#This Row],[Objectif de contact trimestriel]]>0,tblGoals348[[#This Row],[Contacts trimestriels réels effectués]]/tblGoals348[[#This Row],[Objectif de contact trimestriel]],\"\")","v":""}]
[]
["Réflexion sur le résultat / Remarques pour l’amélioration"]
["Je me suis rapproché. Essayez plutôt d’appeler vers l’heure du dîner."]